[Event "7th Iberoamerican-ch 2019"]
[Site "Linares"]
[Date "2019.08.10"]
[Round "1.30"]
[White "Paiva, Henrique M A Alberga"]
[Black "Damaso, Rui"]
[Result "0-1"]
[ECO "A04"]
[WhiteElo "2122"]
[BlackElo "2425"]
[Annotator "NA"]
[PlyCount "62"]
[EventDate "2019.08.10"]
[EventType "swiss"]
[EventCountry "ESP"]
[SourceTitle "playchess.com"]
[Source "ChessBase"]
[SourceQuality "1"]
[TimeControl "5400+30"]

1. Nf3 {[%emt 0:01:23]} d6 {[%emt 0:00:01]} 2. e4 {[%emt 0:01:53]} Nf6 {[%emt 0:00:28]} 3. Nc3 {[%emt 0:00:23]} c6 {[%emt 0:01:10]} 4. a4 {[%emt 0:02:45]} Bg4 {[%emt 0:05:14]} 5. Be2 {[%emt 0:02:50]} e6 {[%emt 0:02:37]} 6. d4 {[%emt 0:11:20]} Be7 {[%emt 0:01:53]} 7. O-O {[%emt 0:00:18]} d5 {[%emt 0:01:21]} 8. exd5 {[%emt 0:09:37]} cxd5 {[%emt 0:00:45]} 9. Ne5 {[%emt 0:08:11]} Bxe2 {[%emt 0:00:19]} 10. Nxe2 {[%emt 0:00:18]} Nc6 {[%emt 0:05:26]} 11. Nd3 {[%emt 0:05:25]} Ne4 {[%emt 0:04:41]} 12. f3 {[%emt 0:02:19]} Nd6 {[%emt 0:02:35]} 13. c3 {[%emt 0:00:12]} O-O {[%emt 0:06:04]} 14. Ng3 {[%emt 0:07:53]} Rc8 {[%emt 0:05:48]} 15. Qe2 {[%emt 0:12:51]} Re8 {[%emt 0:01:46]} 16. Bf4 {[%emt 0:09:59]} Bf8 {[%emt 0:02:35]} 17. Bxd6 {[%emt 0:00:35]} Qxd6 {[%emt 0:04:13]} 18. f4 {[%emt 0:00:40]} Na5 {[%emt 0:02:01]} 19. Rae1 {[%emt 0:05:16]} g6 {[%emt 0:07:32]} 20. f5 {[%emt 0:06:52]} exf5 {[%emt 0:06:08]} 21. Qxe8 {[%emt 0:01:55]} Rxe8 {[%emt 0:00:04]} 22. Rxe8 {[%emt 0:00:07]} Qd7 {[%emt 0:02:23]} 23. Rfe1 {[%emt 0:00:43]} Kg7 {[%emt 0:03:21]} 24. b4 {[%emt 0:01:11]} Nc4 {[%emt 0:00:44]} 25. a5 {[%emt 0:02:34]} Bd6 {[%emt 0:02:14]} 26. Nc5 {[%emt 0:00:34]} Qc6 {[%emt 0:05:28]} 27. Nf1 {[%emt 0:01:33]} b6 {[%emt 0:01:30]} 28. axb6 {[%emt 0:00:21]} axb6 {[%emt 0:00:04]} 29. Nd3 {[%emt 0:00:08]} Na3 {[%emt 0:05:32]} 30. Rd8 {[%emt 0:02:08]} Bc7 {[%emt 0:00:20]} 31. Ne5 {[%emt 0:02:15]} Qxc3 {[%emt 0:00:52]} 0-1

[Event "7th Iberoamerican-ch 2019"]
[Site "Linares"]
[Date "2019.08.10"]
[Round "1.31"]
[White "Gines Esteo, Pedro Antonio"]
[Black "Ingunza Curro, Andres"]
[Result "1-0"]
[ECO "A04"]
[WhiteElo "2404"]
[BlackElo "2131"]
[Annotator "NA"]
[PlyCount "73"]
[EventDate "2019.08.10"]
[EventType "swiss"]
[EventCountry "ESP"]
[SourceTitle "playchess.com"]
[Source "ChessBase"]
[SourceQuality "1"]
[TimeControl "5400+30"]

1. Nf3 {[%emt 0:00:00]} e6 {[%emt 0:00:05]} 2. b3 {[%emt 0:01:49]} Nf6 {[%emt 0:00:50]} 3. Bb2 {[%emt 0:00:06]} d5 {[%emt 0:00:57]} 4. c4 {[%emt 0:01:54]} Be7 {[%emt 0:02:32]} 5. e3 {[%emt 0:01:16]} O-O {[%emt 0:01:13]} 6. Nc3 {[%emt 0:02:09]} b6 {[%emt 0:01:17]} 7. cxd5 {[%emt 0:02:15]} exd5 {[%emt 0:01:47]} 8. d4 {[%emt 0:00:13]} Bb7 {[%emt 0:02:11]} 9. Bd3 {[%emt 0:03:39]} Nbd7 {[%emt 0:01:49]} 10. O-O {[%emt 0:00:09]} Re8 {[%emt 0:09:57]} 11. Rc1 {[%emt 0:01:59]} a6 {[%emt 0:02:58]} 12. Ne2 {[%emt 0:04:18]} Bf8 {[%emt 0:12:27]} 13. Nf4 {[%emt 0:01:42]} c5 {[%emt 0:04:16]} 14. Bf5 {[%emt 0:00:27]} cxd4 {[%emt 0:13:10]} 15. Qxd4 {[%emt 0:14:12]} Nc5 {[%emt 0:06:20]} 16. Rfd1 {[%emt 0:02:34]} Ne6 {[%emt 0:03:58]} 17. Bxe6 {[%emt 0:10:10]} fxe6 {[%emt 0:00:07]} 18. Ne5 {[%emt 0:00:01]} Bc5 {[%emt 0:01:57]} 19. Qd3 {[%emt 0:01:32]} a5 {[%emt 0:02:32]} 20. Bd4 {[%emt 0:01:02]} Ba6 {[%emt 0:01:32]} 21. Qb1 {[%emt 0:01:11]} Rc8 {[%emt 0:03:57]} 22. Qa1 {[%emt 0:06:26]} Qe7 {[%emt 0:06:31]} 23. h4 {[%emt 0:00:06]} Ne4 {[%emt 0:04:45]} 24. Nf3 {[%emt 0:03:26]} Nd6 {[%emt 0:07:40]} 25. Ng5 {[%emt 0:04:14]} Qd7 {[%emt 0:03:59]} 26. Qb1 {[%emt 0:01:08]} Nf5 {[%emt 0:02:46]} 27. Nfxe6 {[%emt 0:01:28]} g6 {[%emt 0:00:06]} 28. Bxc5 {[%emt 0:00:31]} Rxe6 {[%emt 0:00:41]} 29. Nxe6 {[%emt 0:00:11]} Qxe6 {[%emt 0:00:01]} 30. Bd4 {[%emt 0:03:32]} Nxh4 {[%emt 0:01:16]} 31. f3 {[%emt 0:01:24]} Rf8 {[%emt 0:00:51]} 32. Qc2 {[%emt 0:04:58]} Rxf3 {[%emt 0:00:56]} 33. Qc7 {[%emt 0:00:45]} Nf5 {[%emt 0:00:32]} 34. Qd8+ {[%emt 0:00:14]} Kf7 {[%emt 0:00:09]} 35. Rc7+ {[%emt 0:00:08]} Ne7 {[%emt 0:00:05]} 36. gxf3 {[%emt 0:00:23]} Be2 {[%emt 0:00:14]} 37. Rdc1 {[%emt 0:01:01]} 1-0

[Event "7th Iberoamerican-ch 2019"]
[Site "Linares"]
[Date "2019.08.10"]
[Round "1.32"]
[White "Silva, Goncalo Nuno Neto Pi"]
[Black "Plazuelo Pascual, Juan"]
[Result "0-1"]
[ECO "C01"]
[WhiteElo "2085"]
[BlackElo "2403"]
[Annotator "NA"]
[PlyCount "82"]
[EventDate "2019.08.10"]
[EventType "swiss"]
[EventCountry "ESP"]
[SourceTitle "playchess.com"]
[Source "ChessBase"]
[SourceQuality "1"]
[TimeControl "5400+30"]

1. e4 {[%emt 0:02:12]} e6 {[%emt 0:00:00]} 2. d4 {[%emt 0:00:23]} d5 {[%emt 0:00:00]} 3. exd5 {[%emt 0:00:04]} exd5 {[%emt 0:00:00]} 4. Nf3 {[%emt 0:00:06]} Bd6 {[%emt 0:00:57]} 5. c4 {[%emt 0:00:36]} Nf6 {[%emt 0:01:00]} 6. Nc3 {[%emt 0:01:29]} O-O {[%emt 0:00:43]} 7. c5 {[%emt 0:04:13]} Be7 {[%emt 0:06:19]} 8. Be2 {[%emt 0:09:18]} b6 {[%emt 0:00:48]} 9. cxb6 {[%emt 0:00:08]} axb6 {[%emt 0:00:05]} 10. O-O {[%emt 0:00:21]} Bb7 {[%emt 0:06:05]} 11. Bg5 {[%emt 0:06:36]} h6 {[%emt 0:04:24]} 12. Bh4 {[%emt 0:00:27]} c5 {[%emt 0:02:21]} 13. Qb3 {[%emt 0:04:01]} c4 {[%emt 0:05:54]} 14. Qc2 {[%emt 0:00:08]} Nc6 {[%emt 0:02:02]} 15. Rad1 {[%emt 0:00:10]} Ra5 {[%emt 0:08:51]} 16. Ne5 {[%emt 0:01:12]} Nxe5 {[%emt 0:23:01]} 17. dxe5 {[%emt 0:00:11]} Nd7 {[%emt 0:00:05]} 18. Bg3 {[%emt 0:00:41]} Qa8 {[%emt 0:02:01]} 19. Bg4 {[%emt 0:08:20]} Nc5 {[%emt 0:03:50]} 20. b4 {[%emt 0:04:29]} cxb3 {[%emt 0:00:11]} 21. axb3 {[%emt 0:00:03]} d4 {[%emt 0:07:18]} 22. Rxd4 {[%emt 0:02:24]} Bxg2 {[%emt 0:00:08]} 23. Rfd1 {[%emt 0:00:23]} Ne6 {[%emt 0:03:48]} 24. Rd7 {[%emt 0:03:00]} Bh1 {[%emt 0:05:30]} 25. f3 {[%emt 0:05:50]} Bxf3 {[%emt 0:00:30]} 26. Bxf3 {[%emt 0:00:49]} Qxf3 {[%emt 0:00:06]} 27. Rxe7 {[%emt 0:02:04]} Ng5 {[%emt 0:00:03]} 28. Qg2 {[%emt 0:01:57]} Qxc3 {[%emt 0:00:11]} 29. Red7 {[%emt 0:00:47]} Ra1 {[%emt 0:02:34]} 30. Rxa1 {[%emt 0:03:23]} Qxa1+ {[%emt 0:00:05]} 31. Qf1 {[%emt 0:00:05]} Qb2 {[%emt 0:00:20]} 32. Qd3 {[%emt 0:05:05]} Ne6 {[%emt 0:00:07]} 33. Qf3 {[%emt 0:04:17]} Nd4 {[%emt 0:03:14]} 34. Qf2 {[%emt 0:00:47]} Qb1+ {[%emt 0:00:09]} 35. Kg2 {[%emt 0:01:24]} Qe4+ {[%emt 0:00:05]} 36. Kf1 {[%emt 0:00:11]} Nxb3 {[%emt 0:02:01]} 37. Qf4 {[%emt 0:03:07]} Qb1+ {[%emt 0:00:46]} 38. Kg2 {[%emt 0:00:12]} Qc2+ {[%emt 0:00:36]} 39. Kh3 {[%emt 0:00:25]} Nc5 {[%emt 0:01:12]} 40. Rd6 {[%emt 0:00:51]} Ne6 {[%emt 0:00:48]} 41. Qf2 {[%emt 0:01:13]} Qe4 {[%emt 0:00:33]} 0-1

[Event "7th Iberoamerican-ch 2019"]
[Site "Linares"]
[Date "2019.08.10"]
[Round "1.33"]
[White "Cori T., Deysi"]
[Black "Martinez-Conde Hernandez, Carlos"]
[Result "1-0"]
[ECO "A49"]
[WhiteElo "2405"]
[BlackElo "2085"]
[Annotator "NA"]
[PlyCount "81"]
[EventDate "2019.08.10"]
[EventType "swiss"]
[EventCountry "ESP"]
[SourceTitle "playchess.com"]
[Source "ChessBase"]
[SourceQuality "1"]
[TimeControl "5400+30"]

1. d4 {[%emt 0:00:00]} Nf6 {[%emt 0:00:00]} 2. Nf3 {[%emt 0:00:00]} g6 {[%emt 0:00:00]} 3. g3 {[%emt 0:00:00]} Bg7 {[%emt 0:00:06]} 4. Bg2 {[%emt 0:00:00]} O-O {[%emt 0:00:12]} 5. O-O {[%emt 0:00:00]} d6 {[%emt 0:00:06]} 6. b3 {[%emt 0:00:00]} e5 {[%emt 0:00:17]} 7. dxe5 {[%emt 0:02:13]} dxe5 {[%emt 0:00:20]} 8. Bb2 {[%emt 0:01:27]} Qxd1 {[%emt 0:04:19]} 9. Rxd1 {[%emt 0:00:06]} Nc6 {[%emt 0:00:04]} 10. Nxe5 {[%emt 0:06:30]} Ng4 {[%emt 0:02:54]} 11. Nc4 {[%emt 0:01:29]} Nce5 {[%emt 0:07:16]} 12. Nba3 {[%emt 0:03:29]} Rb8 {[%emt 0:03:22]} 13. Bd4 {[%emt 0:17:02]} b6 {[%emt 0:06:00]} 14. Nxe5 {[%emt 0:02:30]} Nxe5 {[%emt 0:00:59]} 15. f4 {[%emt 0:00:43]} Ng4 16. Nb5 {[%emt 0:08:50]} Bxd4+ {[%emt 0:07:04]} 17. Rxd4 {[%emt 0:02:45]} c5 {[%emt 0:15:18]} 18. Rd3 {[%emt 0:08:08]} Ba6 {[%emt 0:13:11]} 19. a4 Rbd8 20. Rad1 {[%emt 0:04:49]} Rxd3 {[%emt 0:01:08]} 21. Rxd3 Re8 22. e4 {[%emt 0:01:05]} Bxb5 {[%emt 0:00:46]} 23. axb5 {[%emt 0:09:04]} Re7 {[%emt 0:01:27]} 24. e5 {[%emt 0:07:34]} Kg7 {[%emt 0:04:01]} 25. Bf3 Nh6 26. g4 {[%emt 0:00:43]} Ng8 {[%emt 0:01:03]} 27. g5 {[%emt 0:00:46]} h6 {[%emt 0:00:58]} 28. h4 {[%emt 0:00:10]} hxg5 {[%emt 0:00:01]} 29. hxg5 {[%emt 0:00:04]} Rc7 {[%emt 0:00:23]} 30. c4 {[%emt 0:00:20]} Ne7 {[%emt 0:01:03]} 31. Bg4 {[%emt 0:00:07]} Kf8 {[%emt 0:05:09]} 32. Rd8+ {[%emt 0:00:47]} Kg7 {[%emt 0:00:02]} 33. Kf2 {[%emt 0:00:44]} Rb7 {[%emt 0:01:37]} 34. Kf3 {[%emt 0:00:52]} Rc7 {[%emt 0:00:13]} 35. Ke4 {[%emt 0:00:12]} Rb7 {[%emt 0:00:43]} 36. Ra8 {[%emt 0:01:06]} Ng8 {[%emt 0:02:38]} 37. Kd5 {[%emt 0:01:31]} Ne7+ {[%emt 0:00:33]} 38. Kd6 {[%emt 0:00:16]} Nf5+ {[%emt 0:00:43]} 39. Bxf5 {[%emt 0:00:13]} gxf5 {[%emt 0:00:01]} 40. Re8 {[%emt 0:00:26]} Kg6 {[%emt 0:00:38]} 41. Kc6 {[%emt 0:00:12]} 1-0

[Event "7th Iberoamerican-ch 2019"]
[Site "Linares"]
[Date "2019.08.10"]
[Round "1.34"]
[White "Avila Fraire, Ameyalli"]
[Black "Lopez Mulet, Inigo"]
[Result "0-1"]
[ECO "B40"]
[WhiteElo "2038"]
[BlackElo "2378"]
[Annotator "NA"]
[PlyCount "64"]
[EventDate "2019.08.10"]
[EventType "swiss"]
[EventCountry "ESP"]
[SourceTitle "playchess.com"]
[Source "ChessBase"]
[SourceQuality "1"]
[TimeControl "5400+30"]

1. e4 {[%emt 0:00:00]} c5 {[%emt 0:00:00]} 2. Nf3 {[%emt 0:00:00]} e6 {[%emt 0:00:00]} 3. g3 {[%emt 0:00:15]} Nc6 {[%emt 0:00:13]} 4. Bg2 {[%emt 0:01:14]} Nf6 {[%emt 0:00:23]} 5. Qe2 {[%emt 0:01:35]} Be7 {[%emt 0:00:29]} 6. O-O {[%emt 0:02:43]} d5 {[%emt 0:00:36]} 7. d3 {[%emt 0:02:22]} O-O {[%emt 0:01:42]} 8. c4 {[%emt 0:07:39]} dxe4 {[%emt 0:19:10]} 9. dxe4 {[%emt 0:00:10]} Nd4 {[%emt 0:00:07]} 10. Qd3 {[%emt 0:17:14]} Qb6 {[%emt 0:04:13]} 11. b3 {[%emt 0:10:48]} Ng4 {[%emt 0:11:33]} 12. Bb2 {[%emt 0:06:57]} Rd8 {[%emt 0:01:15]} 13. h3 {[%emt 0:03:34]} Bf6 {[%emt 0:02:42]} 14. Nxd4 {[%emt 0:03:15]} Ne5 {[%emt 0:03:26]} 15. Qd2 {[%emt 0:05:17]} cxd4 {[%emt 0:02:36]} 16. Na3 {[%emt 0:02:59]} Be7 {[%emt 0:05:32]} 17. Nc2 {[%emt 0:07:10]} Nxc4 {[%emt 0:02:01]} 18. bxc4 {[%emt 0:01:40]} Qxb2 {[%emt 0:00:07]} 19. Rfb1 {[%emt 0:00:05]} Qc3 {[%emt 0:00:06]} 20. Qxc3 {[%emt 0:00:41]} dxc3 {[%emt 0:00:08]} 21. e5 {[%emt 0:00:30]} Rd2 {[%emt 0:01:08]} 22. Bxb7 {[%emt 0:09:48]} Bxb7 {[%emt 0:00:17]} 23. Rxb7 {[%emt 0:00:06]} Bc5 {[%emt 0:00:18]} 24. Rc1 {[%emt 0:02:58]} Rxf2 {[%emt 0:00:52]} 25. Kh1 {[%emt 0:00:23]} h5 {[%emt 0:00:40]} 26. Rb3 {[%emt 0:00:32]} Rd8 {[%emt 0:00:41]} 27. Rb5 {[%emt 0:03:31]} Rdd2 {[%emt 0:01:50]} 28. Rxc5 {[%emt 0:03:19]} Rxc2 {[%emt 0:00:08]} 29. Rb1 {[%emt 0:01:45]} Rh2+ {[%emt 0:00:15]} 30. Kg1 {[%emt 0:00:11]} Rcg2+ {[%emt 0:00:05]} 31. Kf1 {[%emt 0:00:16]} Rh1+ {[%emt 0:00:15]} 32. Kxg2 {[%emt 0:00:18]} Rxb1 {[%emt 0:00:04]} 0-1

[Event "7th Iberoamerican-ch 2019"]
[Site "Linares"]
[Date "2019.08.10"]
[Round "1.35"]
[White "Merario Alarcon, Andres"]
[Black "Jesus Reyes, Javier"]
[Result "1-0"]
[ECO "E71"]
[WhiteElo "2400"]
[BlackElo "2026"]
[Annotator "NA"]
[PlyCount "59"]
[EventDate "2019.08.10"]
[EventType "swiss"]
[EventCountry "ESP"]
[SourceTitle "playchess.com"]
[Source "ChessBase"]
[SourceQuality "1"]
[TimeControl "5400+30"]

1. d4 {[%emt 0:00:53]} Nf6 {[%emt 0:00:00]} 2. c4 {[%emt 0:00:13]} g6 {[%emt 0:00:17]} 3. Nc3 {[%emt 0:00:15]} Bg7 {[%emt 0:00:29]} 4. e4 {[%emt 0:00:15]} d6 {[%emt 0:00:17]} 5. h3 {[%emt 0:00:31]} O-O {[%emt 0:02:00]} 6. Be3 {[%emt 0:00:07]} c5 {[%emt 0:04:00]} 7. d5 {[%emt 0:00:10]} e6 {[%emt 0:01:02]} 8. Bd3 {[%emt 0:00:18]} exd5 {[%emt 0:00:45]} 9. exd5 {[%emt 0:00:10]} Re8 {[%emt 0:01:18]} 10. Nf3 {[%emt 0:00:09]} Nbd7 {[%emt 0:02:20]} 11. O-O {[%emt 0:00:10]} Nh5 {[%emt 0:02:40]} 12. Qd2 {[%emt 0:08:01]} Ne5 {[%emt 0:02:49]} 13. Be2 {[%emt 0:02:05]} Nxf3+ {[%emt 0:02:44]} 14. Bxf3 {[%emt 0:00:03]} Nf6 {[%emt 0:00:15]} 15. Bf4 {[%emt 0:02:46]} Bf5 {[%emt 0:10:55]} 16. Rfe1 {[%emt 0:02:31]} Qb6 {[%emt 0:02:22]} 17. g4 {[%emt 0:02:47]} Bd7 {[%emt 0:03:34]} 18. Kh2 {[%emt 0:12:37]} Rxe1 {[%emt 0:04:16]} 19. Rxe1 {[%emt 0:00:09]} Re8 {[%emt 0:00:04]} 20. g5 {[%emt 0:07:48]} Nh5 {[%emt 0:08:18]} 21. Rxe8+ {[%emt 0:01:45]} Bxe8 {[%emt 0:00:01]} 22. Bxh5 {[%emt 0:00:31]} gxh5 {[%emt 0:00:07]} 23. Ne4 {[%emt 0:05:48]} Bxb2 {[%emt 0:12:36]} 24. Bxd6 {[%emt 0:05:20]} Bd4 {[%emt 0:03:36]} 25. Qf4 {[%emt 0:01:33]} Ba4 {[%emt 0:05:53]} 26. Be5 {[%emt 0:04:00]} Qb2 {[%emt 0:07:50]} 27. Bf6 {[%emt 0:05:04]} h6 {[%emt 0:06:45]} 28. gxh6 {[%emt 0:04:33]} Bxf6 {[%emt 0:01:36]} 29. Nxf6+ {[%emt 0:00:12]} Kh8 {[%emt 0:00:21]} 30. Qb8+ {[%emt 0:00:09]} 1-0

[Event "7th Iberoamerican-ch 2019"]
[Site "Linares"]
[Date "2019.08.10"]
[Round "1.36"]
[White "Garcia Morales, Ivette Ale"]
[Black "Teran Alvarez, Ismael"]
[Result "1/2-1/2"]
[ECO "A40"]
[WhiteElo "1998"]
[BlackElo "2392"]
[Annotator "NA"]
[PlyCount "62"]
[EventDate "2019.08.10"]
[EventType "swiss"]
[EventCountry "ESP"]
[SourceTitle "playchess.com"]
[Source "ChessBase"]
[SourceQuality "1"]
[TimeControl "5400+30"]

1. d4 {[%emt 0:00:00]} e6 {[%emt 0:00:10]} 2. Nf3 {[%emt 0:00:00]} f5 {[%emt 0:00:30]} 3. g3 {[%emt 0:00:09]} Nf6 {[%emt 0:00:06]} 4. Bg2 {[%emt 0:00:02]} d5 {[%emt 0:01:55]} 5. O-O {[%emt 0:00:08]} Bd6 {[%emt 0:00:06]} 6. c4 {[%emt 0:00:04]} c6 {[%emt 0:00:05]} 7. b3 {[%emt 0:00:08]} Qe7 {[%emt 0:00:22]} 8. a4 {[%emt 0:00:47]} a5 {[%emt 0:00:45]} 9. Ba3 {[%emt 0:02:32]} Bxa3 {[%emt 0:13:11]} 10. Nxa3 {[%emt 0:00:12]} O-O {[%emt 0:00:06]} 11. Ne5 {[%emt 0:08:10]} Nbd7 {[%emt 0:05:20]} 12. Nxd7 {[%emt 0:06:55]} Bxd7 {[%emt 0:01:14]} 13. Qc1 {[%emt 0:12:18]} Be8 {[%emt 0:11:11]} 14. Nc2 {[%emt 0:12:25]} Bh5 {[%emt 0:05:49]} 15. Qd2 {[%emt 0:10:32]} Kh8 {[%emt 0:11:28]} 16. f4 {[%emt 0:22:43]} b6 {[%emt 0:06:23]} 17. Bf3 {[%emt 0:01:16]} Rad8 {[%emt 0:03:11]} 18. c5 {[%emt 0:01:32]} bxc5 {[%emt 0:15:14]} 19. Qxa5 {[%emt 0:00:29]} cxd4 {[%emt 0:01:01]} 20. Nxd4 {[%emt 0:00:27]} Ra8 {[%emt 0:00:52]} 21. Qb6 {[%emt 0:03:02]} Bxf3 {[%emt 0:07:43]} 22. exf3 {[%emt 0:05:57]} c5 {[%emt 0:04:32]} 23. Qxe6 {[%emt 0:04:49]} Qb7 {[%emt 0:02:36]} 24. Nb5 {[%emt 0:00:51]} g6 {[%emt 0:02:24]} 25. Rac1 {[%emt 0:00:34]} Ra6 {[%emt 0:02:52]} 26. Qe3 {[%emt 0:02:06]} c4 {[%emt 0:01:49]} 27. bxc4 {[%emt 0:01:29]} Rxa4 {[%emt 0:00:08]} 28. Nd6 {[%emt 0:00:10]} Qa7 {[%emt 0:00:57]} 29. Qxa7 {[%emt 0:00:00]} Rxa7 {[%emt 0:00:00]} 30. c5 {[%emt 0:00:23]} Rc7 {[%emt 0:00:42]} 31. Nb5 {[%emt 0:02:26]} Rb7 1/2-1/2

[Event "7th Iberoamerican-ch 2019"]
[Site "Linares"]
[Date "2019.08.10"]
[Round "1.37"]
[White "Valenzuela Gomez, Fernando"]
[Black "Gines Abad, Pedro"]
[Result "1-0"]
[ECO "D15"]
[WhiteElo "2394"]
[BlackElo "1964"]
[Annotator "NA"]
[PlyCount "127"]
[EventDate "2019.08.10"]
[EventType "swiss"]
[EventCountry "ESP"]
[SourceTitle "playchess.com"]
[Source "ChessBase"]
[SourceQuality "1"]
[TimeControl "5400+30"]

1. d4 {[%emt 0:00:00]} d5 {[%emt 0:00:00]} 2. c4 {[%emt 0:00:03]} c6 {[%emt 0:00:15]} 3. Nf3 {[%emt 0:00:21]} Nf6 {[%emt 0:00:18]} 4. Nc3 {[%emt 0:01:43]} Bg4 {[%emt 0:02:30]} 5. Ne5 {[%emt 0:00:09]} Bh5 {[%emt 0:02:18]} 6. cxd5 {[%emt 0:10:05]} Nxd5 {[%emt 0:04:29]} 7. Qb3 {[%emt 0:01:18]} Qb6 {[%emt 0:03:27]} 8. Qxb6 {[%emt 0:04:19]} axb6 {[%emt 0:02:46]} 9. Nxd5 {[%emt 0:04:44]} cxd5 {[%emt 0:00:11]} 10. e3 {[%emt 0:00:52]} f6 {[%emt 0:00:40]} 11. Bb5+ {[%emt 0:01:51]} Kd8 {[%emt 0:00:16]} 12. Nd3 e6 {[%emt 0:03:33]} 13. Bd2 {[%emt 0:01:29]} Be8 {[%emt 0:01:16]} 14. Bxe8 {[%emt 0:00:48]} Kxe8 {[%emt 0:00:02]} 15. O-O {[%emt 0:02:58]} Nc6 16. f3 {[%emt 0:03:31]} Bd6 {[%emt 0:09:25]} 17. a4 {[%emt 0:03:05]} Kd7 {[%emt 0:03:51]} 18. b3 {[%emt 0:00:32]} Rhc8 {[%emt 0:02:42]} 19. Rac1 {[%emt 0:04:56]} Ne7 {[%emt 0:10:40]} 20. Kf2 {[%emt 0:05:19]} Rc6 {[%emt 0:06:06]} 21. Rxc6 {[%emt 0:01:22]} bxc6 {[%emt 0:01:04]} 22. Rc1 {[%emt 0:00:47]} h5 {[%emt 0:00:55]} 23. e4 {[%emt 0:04:37]} dxe4 {[%emt 0:08:28]} 24. fxe4 {[%emt 0:00:33]} f5 {[%emt 0:00:58]} 25. e5 {[%emt 0:04:54]} Bc7 {[%emt 0:00:19]} 26. Nf4 {[%emt 0:03:45]} Nd5 {[%emt 0:01:56]} 27. Nxh5 {[%emt 0:07:10]} Rh8 {[%emt 0:02:55]} 28. Nf4 {[%emt 0:00:38]} Nxf4 29. Bxf4 {[%emt 0:00:38]} Rh4 {[%emt 0:14:25]} 30. Kf3 {[%emt 0:01:54]} Bd8 {[%emt 0:04:17]} 31. h3 {[%emt 0:03:34]} Be7 {[%emt 0:01:29]} 32. Rh1 {[%emt 0:02:50]} Rh8 {[%emt 0:03:30]} 33. Be3 {[%emt 0:01:42]} Ra8 {[%emt 0:00:59]} 34. Rd1 {[%emt 0:03:07]} Ra5 {[%emt 0:02:08]} 35. d5 {[%emt 0:02:22]} b5 {[%emt 0:05:14]} 36. Bb6 {[%emt 0:11:45]} Ra6 {[%emt 0:00:38]} 37. dxc6+ {[%emt 0:01:53]} Kxc6 {[%emt 0:00:25]} 38. a5 {[%emt 0:00:16]} Ra8 39. Rc1+ {[%emt 0:01:05]} Kd5 {[%emt 0:01:54]} 40. Rc7 {[%emt 0:00:23]} Bb4 {[%emt 0:00:24]} 41. Rd7+ {[%emt 0:00:52]} Kc6 {[%emt 0:00:54]} 42. Rxg7 {[%emt 0:00:13]} Bxa5 {[%emt 0:00:10]} 43. Bxa5 {[%emt 0:00:17]} Rxa5 {[%emt 0:00:02]} 44. Kf4 {[%emt 0:00:40]} Ra2 {[%emt 0:00:53]} 45. Rg3 {[%emt 0:02:42]} Re2 46. h4 Re4+ {[%emt 0:01:25]} 47. Kg5 {[%emt 0:00:44]} Rxe5 {[%emt 0:00:08]} 48. Kf6 {[%emt 0:00:52]} Re1 {[%emt 0:00:33]} 49. Rh3 {[%emt 0:01:13]} f4 {[%emt 0:00:39]} 50. h5 {[%emt 0:00:14]} Re3 {[%emt 0:00:39]} 51. Rh1 {[%emt 0:00:33]} f3 {[%emt 0:02:10]} 52. g4 {[%emt 0:00:56]} f2 {[%emt 0:00:27]} 53. Rf1 {[%emt 0:00:08]} Rxb3 {[%emt 0:01:08]} 54. Rxf2 {[%emt 0:00:14]} Rh3 {[%emt 0:00:26]} 55. Kxe6 {[%emt 0:00:14]} b4 {[%emt 0:00:16]} 56. Kf5 {[%emt 0:01:00]} b3 {[%emt 0:00:22]} 57. Kg6 {[%emt 0:00:17]} Kd5 {[%emt 0:00:50]} 58. g5 {[%emt 0:00:33]} Rc3 {[%emt 0:00:22]} 59. h6 {[%emt 0:01:40]} Rc6+ {[%emt 0:00:31]} 60. Kh5 {[%emt 0:00:42]} Rc2 {[%emt 0:00:17]} 61. Rf8 {[%emt 0:01:05]} b2 {[%emt 0:00:33]} 62. Rb8 {[%emt 0:00:09]} Ke5 {[%emt 0:00:19]} 63. h7 {[%emt 0:00:37]} Kf5 {[%emt 0:00:43]} 64. Rb5+ {[%emt 0:00:21]} 1-0

[Event "7th Iberoamerican-ch 2019"]
[Site "Linares"]
[Date "2019.08.10"]
[Round "1.38"]
[White "Serrano Garcia, Luis"]
[Black "Vega Gutierrez, Sabrina"]
[Result "0-1"]
[ECO "B24"]
[WhiteElo "1902"]
[BlackElo "2385"]
[Annotator "NA"]
[PlyCount "48"]
[EventDate "2019.08.10"]
[EventType "swiss"]
[EventCountry "ESP"]
[SourceTitle "playchess.com"]
[Source "ChessBase"]
[SourceQuality "1"]
[TimeControl "5400+30"]

1. e4 c5 2. Nc3 Nc6 {[%emt 0:00:07]} 3. Bc4 {[%emt 0:02:03]} a6 4. a4 {[%emt 0:00:30]} e6 {[%emt 0:01:40]} 5. Nf3 {[%emt 0:01:22]} Nf6 {[%emt 0:00:52]} 6. e5 {[%emt 0:03:05]} d5 {[%emt 0:01:21]} 7. exf6 {[%emt 0:10:48]} dxc4 {[%emt 0:00:17]} 8. Nd4 {[%emt 0:19:50]} cxd4 {[%emt 0:01:51]} 9. fxg7 {[%emt 0:01:27]} Bxg7 {[%emt 0:00:13]} 10. Ne4 {[%emt 0:02:33]} O-O {[%emt 0:21:34]} 11. d3 {[%emt 0:05:18]} Qd5 {[%emt 0:03:25]} 12. O-O {[%emt 0:03:56]} Kh8 {[%emt 0:09:57]} 13. Re1 {[%emt 0:05:48]} cxd3 {[%emt 0:03:56]} 14. Qxd3 {[%emt 0:02:56]} f5 {[%emt 0:05:52]} 15. Ng5 {[%emt 0:10:09]} e5 {[%emt 0:00:33]} 16. Qh3 {[%emt 0:06:42]} h6 {[%emt 0:00:45]} 17. Ra3 {[%emt 0:05:42]} f4 {[%emt 0:05:40]} 18. Qh4 {[%emt 0:05:49]} Bf5 {[%emt 0:00:54]} 19. Nf3 {[%emt 0:07:06]} Rae8 {[%emt 0:18:53]} 20. Qh5 {[%emt 0:00:57]} Qd6 {[%emt 0:02:26]} 21. Bxf4 {[%emt 0:01:28]} Bg6 {[%emt 0:01:03]} 22. Bxe5 {[%emt 0:00:57]} Rxe5 {[%emt 0:01:05]} 23. Qg4 {[%emt 0:01:37]} Rxf3 {[%emt 0:04:17]} 24. Rxe5 {[%emt 0:01:18]} Rxa3 {[%emt 0:00:15]} 0-1